[Event "DVM U12w 2023"]
[Site "Magdeburg"]
[Date "2023.12.30"]
[Round "7"]
[White "Burchardi, Helena"]
[Black "Daaboul, Dima"]
[Result "1-0"]
[WhiteElo "1370"]
[BlackElo "1184"]
[PlyCount "89"]
[EventDate "2022.12.27"]
[EventType "team-tourn"]
[EventRounds "7"]
[EventCountry "GER"]
[TimeControl "40/5400+30:1800+30"]
[WhiteClock "0:43:44"]
[BlackClock "0:01:45"]

1. e4 {[%emt 0:00:03]} d5 {[%emt 0:00:12]} 2. exd5 {[%emt 0:00:11]} Qxd5 {[%emt 0:00:14]} 3. Nc3 {[%emt 0:00:13]} Qd8 {[%emt 0:00:10]} 4. d4 {[%emt 0:00:12]} Nf6 {[%emt 0:00:28]} 5. Nf3 {[%emt 0:00:15]} c6 {[%emt 0:00:25]} 6. Bc4 {[%emt 0:01:06]} e6 {[%emt 0:00:29]} 7. O-O {[%emt 0:00:17]} Be7 {[%emt 0:00:37]} 8. Bf4 {[%emt 0:00:17]} Nbd7 {[%emt 0:00:45]} 9. Qe2 {[%emt 0:01:45]} O-O {[%emt 0:02:46]} 10. Ng5 {[%emt 0:01:52]} Nd5 {[%emt 0:05:13]} 11. Nxd5 {[%emt 0:04:34]} exd5 {[%emt 0:02:42]} 12. Nxh7 {[%emt 0:01:55]} Kxh7 {[%emt 0:04:29]} 13. Qh5+ {[%emt 0:00:18]} Kg8 {[%emt 0:00:18]} 14. Bd3 {[%emt 0:00:15]} Nf6 {[%emt 0:02:09]} 15. Qf3 {[%emt 0:02:16]} Bd6 {[%emt 0:06:13]} 16. Bg5 {[%emt 0:04:58]} Be7 {[%emt 0:02:51]} 17. Rfe1 {[%emt 0:00:22]} Re8 {[%emt 0:01:42]} 18. Qg3 {[%emt 0:01:42]} Be6 {[%emt 0:07:05]} 19. Re3 {[%emt 0:07:59]} Qd7 {[%emt 0:10:39]} 20. f3 {[%emt 0:03:21]} Nh5 {[%emt 0:05:21]} 21. Qh4 {[%emt 0:01:32]} Bxg5 {[%emt 0:00:50]} 22. Qxg5 {[%emt 0:00:30]} Nf6 {[%emt 0:03:13]} 23. Rae1 {[%emt 0:05:43]} Qd8 {[%emt 0:14:04]} 24. h4 {[%emt 0:05:18]} Nh7 {[%emt 0:05:26]} 25. Qh5 {[%emt 0:02:35]} g6 {[%emt 0:02:29]} 26. Qh6 {[%emt 0:02:22]} Qf6 {[%emt 0:04:00]} 27. h5 {[%emt 0:01:12]} Qg7 {[%emt 0:00:51]} 28. Qf4 {[%emt 0:02:01]} gxh5 {[%emt 0:00:44]} 29. Re5 {[%emt 0:00:40]} Kh8 {[%emt 0:11:19]} 30. Rxh5 {[%emt 0:00:45]} Rg8 {[%emt 0:00:43]} 31. Rxh7+ {[%emt 0:00:17]} Qxh7 {[%emt 0:00:09]} 32. Bxh7 {[%emt 0:00:20]} Kxh7 {[%emt 0:00:08]} 33. Qh4+ {[%emt 0:00:15]} Kg7 {[%emt 0:00:21]} 34. Re5 {[%emt 0:00:11]} Kf8 {[%emt 0:01:58]} 35. Qf6 {[%emt 0:04:26]} Re8 {[%emt 0:00:42]} 36. g4 {[%emt 0:02:28]} Rg6 {[%emt 0:00:53]} 37. Qh8+ {[%emt 0:01:39]} Rg8 {[%emt 0:01:13]} 38. Qh6+ {[%emt 0:00:16]} Rg7 {[%emt 0:00:24]} 39. Rg5 {[%emt 0:00:19]} Ke7 {[%emt 0:03:04]} 40. Rxg7 {[%emt 0:00:33]} Kd6 {[%emt 0:00:30]} 41. Rxf7 {[%emt 0:30:28]} b6 {[%emt 0:30:50]} 42. Rf6 {[%emt 0:00:16]} Kd7 {[%emt 0:00:18]} 43. g5 {[%emt 0:00:38]} a6 {[%emt 0:00:58]} 44. Rf8 {[%emt 0:00:33]} Rxf8 {[%emt 0:00:50]} 45. Qxf8 {[%emt 0:00:08] normal} 1-0

[Event "DVM U12w 2023"]
[Site "Magdeburg"]
[Date "2023.12.30"]
[Round "7"]
[White "Busch, Lara Sophie"]
[Black "Mersmann, Jasmin"]
[Result "1/2-1/2"]
[WhiteElo "1330"]
[BlackElo "1131"]
[PlyCount "52"]
[EventDate "2022.12.27"]
[EventType "team-tourn"]
[EventRounds "7"]
[EventCountry "GER"]
[TimeControl "40/5400+30:1800+30"]
[WhiteClock "1:07:02"]
[BlackClock "1:24:29"]

1. e4 {[%emt 0:00:02]} e5 {[%emt 0:00:04]} 2. Nf3 {[%emt 0:00:06]} Nc6 {[%emt 0:00:05]} 3. Bc4 {[%emt 0:00:10]} Bc5 {[%emt 0:00:11]} 4. Nc3 {[%emt 0:00:13]} Nf6 {[%emt 0:00:09]} 5. d3 {[%emt 0:00:31]} h6 {[%emt 0:00:06]} 6. h3 {[%emt 0:00:22]} d6 {[%emt 0:00:08]} 7. a3 {[%emt 0:00:18]} Be6 {[%emt 0:00:15]} 8. Ba2 {[%emt 0:00:07]} O-O {[%emt 0:00:08]} 9. Be3 {[%emt 0:00:21]} Bb6 {[%emt 0:00:08]} 10. O-O {[%emt 0:00:39]} Nd7 {[%emt 0:00:20]} 11. Nd5 {[%emt 0:00:57]} Nf6 {[%emt 0:01:35]} 12. c3 {[%emt 0:01:45]} Rc8 {[%emt 0:03:36]} 13. Nd2 {[%emt 0:03:35]} Kh8 {[%emt 0:01:30]} 14. Nxb6 {[%emt 0:01:25]} axb6 {[%emt 0:00:13]} 15. f4 {[%emt 0:01:29]} exf4 {[%emt 0:00:54]} 16. Bxf4 {[%emt 0:00:57]} Nd7 {[%emt 0:00:26]} 17. d4 {[%emt 0:03:09]} Bxa2 {[%emt 0:00:42]} 18. Rxa2 {[%emt 0:00:12]} f5 {[%emt 0:00:38]} 19. exf5 {[%emt 0:03:34]} Rxf5 {[%emt 0:00:22]} 20. Bh2 {[%emt 0:03:24]} Qf6 {[%emt 0:00:24]} 21. Ra1 {[%emt 0:02:11]} Re8 {[%emt 0:01:05]} 22. Qg4 {[%emt 0:01:13]} Rf8 {[%emt 0:01:36]} 23. Rae1 {[%emt 0:01:59]} Qf7 {[%emt 0:01:44]} 24. Rxf5 {[%emt 0:04:00]} Qxf5 {[%emt 0:00:26]} 25. Qxf5 {[%emt 0:00:49]} Rxf5 {[%emt 0:00:12]} 26. Nf3 {[%emt 0:03:00]} Nf6 {[%emt 0:02:04] normal} 1/2-1/2

[Event "DVM U12w 2023"]
[Site "Magdeburg"]
[Date "2023.12.30"]
[Round "7"]
[White "Kuebart, Ela Marie"]
[Black "Stepanova, Anhelina"]
[Result "1/2-1/2"]
[WhiteElo "1325"]
[BlackElo "1172"]
[PlyCount "56"]
[EventDate "2022.12.27"]
[EventType "team-tourn"]
[EventRounds "7"]
[EventCountry "GER"]
[TimeControl "40/5400+30:1800+30"]
[WhiteClock "1:03:20"]
[BlackClock "1:33:57"]

1. c4 {[%emt 0:00:01]} Nc6 {[%emt 0:00:13]} 2. g3 {[%emt 0:00:14]} Nf6 {[%emt 0:00:08]} 3. Bg2 {[%emt 0:00:19]} e5 {[%emt 0:00:22]} 4. e4 {[%emt 0:00:31]} Bc5 {[%emt 0:00:13]} 5. Ne2 {[%emt 0:00:33]} d6 {[%emt 0:00:11]} 6. Nbc3 {[%emt 0:00:59]} Be6 {[%emt 0:00:15]} 7. d3 {[%emt 0:00:55]} a6 {[%emt 0:00:09]} 8. O-O {[%emt 0:01:09]} Qd7 {[%emt 0:00:04]} 9. Be3 {[%emt 0:02:54]} Nd4 {[%emt 0:01:05]} 10. Rb1 {[%emt 0:01:33]} Bh3 {[%emt 0:00:19]} 11. b4 {[%emt 0:01:55]} Ba7 {[%emt 0:00:43]} 12. Nd5 {[%emt 0:02:10]} c6 {[%emt 0:01:04]} 13. Nxf6+ {[%emt 0:00:48]} gxf6 {[%emt 0:00:15]} 14. Bxd4 {[%emt 0:00:41]} Bxd4 {[%emt 0:00:07]} 15. Nxd4 {[%emt 0:00:24]} exd4 {[%emt 0:00:05]} 16. Qf3 {[%emt 0:01:26]} Bxg2 {[%emt 0:00:13]} 17. Kxg2 {[%emt 0:00:40]} Qe6 {[%emt 0:00:28]} 18. Qf5 {[%emt 0:01:19]} Qxf5 {[%emt 0:00:16]} 19. exf5 {[%emt 0:00:11]} O-O-O {[%emt 0:00:03]} 20. Rfe1 {[%emt 0:00:29]} Rde8 {[%emt 0:00:12]} 21. f4 {[%emt 0:01:58]} Kd7 {[%emt 0:00:59]} 22. Rxe8 {[%emt 0:00:52]} Rxe8 {[%emt 0:00:05]} 23. Kf2 {[%emt 0:00:12]} Re3 {[%emt 0:00:22]} 24. Rb3 {[%emt 0:04:17]} Kc7 {[%emt 0:00:20]} 25. c5 {[%emt 0:01:14]} d5 {[%emt 0:00:20]} 26. a3 {[%emt 0:02:39]} b5 {[%emt 0:01:25]} 27. Kg2 {[%emt 0:04:19]} h5 {[%emt 0:00:16]} 28. Kh3 {[%emt 0:06:28]} Re2 {[%emt 0:00:21] normal} 1/2-1/2

[Event "DVM U12w 2023"]
[Site "Magdeburg"]
[Date "2023.12.30"]
[Round "7"]
[White "Ramien, Eva"]
[Black "Zhou, Leyi Charlotte"]
[Result "0-1"]
[WhiteElo "1324"]
[BlackElo "1335"]
[PlyCount "72"]
[EventDate "2022.12.27"]
[EventType "team-tourn"]
[EventRounds "7"]
[EventCountry "GER"]
[TimeControl "40/5400+30:1800+30"]
[WhiteClock "0:12:43"]
[BlackClock "1:02:46"]

1. e4 {[%emt 0:00:03]} e5 {[%emt 0:00:16]} 2. Nf3 {[%emt 0:00:10]} Nc6 {[%emt 0:00:25]} 3. d4 {[%emt 0:00:18]} exd4 {[%emt 0:00:16]} 4. Bc4 {[%emt 0:00:24]} Nf6 {[%emt 0:00:26]} 5. e5 {[%emt 0:01:04]} d5 {[%emt 0:00:47]} 6. Bb5 {[%emt 0:00:12]} Ne4 {[%emt 0:00:31]} 7. Nxd4 {[%emt 0:00:14]} Bd7 {[%emt 0:01:03]} 8. Bxc6 {[%emt 0:00:33]} Bxc6 {[%emt 0:00:11]} 9. f3 {[%emt 0:09:36]} Ng5 {[%emt 0:03:12]} 10. f4 {[%emt 0:00:11]} Ne6 {[%emt 0:00:15]} 11. Nxe6 {[%emt 0:04:09]} fxe6 {[%emt 0:00:09]} 12. Qh5+ {[%emt 0:09:56]} g6 {[%emt 0:00:34]} 13. Qg4 {[%emt 0:00:34]} Qe7 {[%emt 0:00:21]} 14. Be3 {[%emt 0:03:49]} O-O-O {[%emt 0:01:52]} 15. Bd4 {[%emt 0:05:13]} Bd7 {[%emt 0:00:42]} 16. Nd2 {[%emt 0:04:35]} Qb4 {[%emt 0:00:31]} 17. Bc3 {[%emt 0:04:48]} Qb6 {[%emt 0:03:28]} 18. Nb3 {[%emt 0:01:32]} Qe3+ {[%emt 0:03:29]} 19. Kd1 {[%emt 0:01:43]} Qe4 {[%emt 0:05:00]} 20. Re1 {[%emt 0:06:53]} Qc4 {[%emt 0:01:28]} 21. Kd2 {[%emt 0:07:40]} Kb8 {[%emt 0:03:23]} 22. Qh4 {[%emt 0:10:56]} Bb4 {[%emt 0:02:44]} 23. Bxb4 {[%emt 0:01:10]} Qxb4+ {[%emt 0:01:15]} 24. c3 {[%emt 0:01:28]} Qb6 {[%emt 0:00:33]} 25. Kc2 {[%emt 0:00:48]} Ba4 {[%emt 0:01:46]} 26. Rf1 {[%emt 0:06:56]} d4 {[%emt 0:02:00]} 27. Rad1 {[%emt 0:05:44]} d3+ {[%emt 0:02:02]} 28. Rxd3 {[%emt 0:00:49]} Rxd3 {[%emt 0:00:14]} 29. Kxd3 {[%emt 0:00:11]} Bb5+ {[%emt 0:00:30]} 30. c4 {[%emt 0:00:14]} Bxc4+ {[%emt 0:00:24]} 31. Kxc4 {[%emt 0:00:49]} Qa6+ {[%emt 0:00:09]} 32. Kb4 {[%emt 0:00:26]} Qxf1 {[%emt 0:00:15]} 33. Qf6 {[%emt 0:00:30]} Qe1+ {[%emt 0:00:49]} 34. Ka3 {[%emt 0:00:30]} Rc8 {[%emt 0:01:39]} 35. Qxe6 {[%emt 0:01:09]} Qe3 {[%emt 0:02:31]} 36. Qf7 {[%emt 0:12:44]} a5 {[%emt 0:00:34] normal} 0-1

[Event "DVM U12w 2023"]
[Site "Magdeburg"]
[Date "2023.12.30"]
[Round "7"]
[White "Shynkar, Daria"]
[Black "Will, Elina"]
[Result "1/2-1/2"]
[WhiteElo "1316"]
[BlackElo "1325"]
[PlyCount "103"]
[EventDate "2022.12.27"]
[EventType "team-tourn"]
[EventRounds "7"]
[EventCountry "GER"]
[TimeControl "40/5400+30:1800+30"]
[WhiteClock "0:11:29"]
[BlackClock "0:59:51"]

1. d4 {[%emt 0:00:01]} Nf6 {[%emt 0:00:07]} 2. c4 {[%emt 0:00:03]} g6 {[%emt 0:00:05]} 3. Nc3 {[%emt 0:00:04]} d5 {[%emt 0:00:05]} 4. cxd5 {[%emt 0:00:21]} Nxd5 {[%emt 0:00:11]} 5. e4 {[%emt 0:00:23]} Nxc3 {[%emt 0:00:06]} 6. bxc3 {[%emt 0:00:10]} Bg7 {[%emt 0:00:06]} 7. Be3 {[%emt 0:06:17]} c5 {[%emt 0:00:29]} 8. Qd2 {[%emt 0:01:49]} Qa5 {[%emt 0:00:53]} 9. Ne2 {[%emt 0:05:51]} Nd7 {[%emt 0:06:29]} 10. Rc1 {[%emt 0:06:39]} b6 {[%emt 0:02:00]} 11. g3 {[%emt 0:02:14]} Bb7 {[%emt 0:01:18]} 12. f3 {[%emt 0:02:02]} Rd8 {[%emt 0:10:42]} 13. Bh6 {[%emt 0:20:06]} Ne5 {[%emt 0:04:47]} 14. Ng1 {[%emt 0:07:33]} Bxh6 {[%emt 0:00:20]} 15. Qxh6 {[%emt 0:00:15]} cxd4 {[%emt 0:00:03]} 16. Qd2 {[%emt 0:04:28]} dxc3 {[%emt 0:00:52]} 17. Qxc3 {[%emt 0:02:50]} Qxc3+ {[%emt 0:00:06]} 18. Rxc3 {[%emt 0:00:09]} O-O {[%emt 0:00:06]} 19. Rc7 {[%emt 0:03:27]} Rd7 {[%emt 0:00:06]} 20. Rxd7 {[%emt 0:00:35]} Nxd7 {[%emt 0:00:07]} 21. Nh3 {[%emt 0:01:32]} Ne5 {[%emt 0:00:57]} 22. Bg2 {[%emt 0:02:29]} Rd8 {[%emt 0:00:11]} 23. O-O {[%emt 0:04:53]} Ba6 {[%emt 0:00:26]} 24. Ra1 {[%emt 0:01:40]} Rd2 {[%emt 0:00:36]} 25. a4 {[%emt 0:01:51]} Be2 {[%emt 0:00:23]} 26. f4 {[%emt 0:02:33]} Ng4 {[%emt 0:00:45]} 27. Nf2 {[%emt 0:02:24]} Nxf2 {[%emt 0:00:13]} 28. Kxf2 {[%emt 0:00:10]} Bd3+ {[%emt 0:00:28]} 29. Kg1 {[%emt 0:00:19]} Re2 {[%emt 0:00:16]} 30. e5 {[%emt 0:00:19]} Rb2 {[%emt 0:01:03]} 31. Bc6 {[%emt 0:01:56]} Rb1+ {[%emt 0:01:24]} 32. Rxb1 {[%emt 0:00:13]} Bxb1 {[%emt 0:00:04]} 33. Kf2 {[%emt 0:00:20]} Kf8 {[%emt 0:00:04]} 34. Ke3 {[%emt 0:00:24]} e6 {[%emt 0:00:38]} 35. Kd4 {[%emt 0:00:17]} Ba2 {[%emt 0:00:03]} 36. Kc3 {[%emt 0:01:44]} Ke7 {[%emt 0:00:05]} 37. Kb4 {[%emt 0:01:34]} Bd5 {[%emt 0:00:13]} 38. Bb5 {[%emt 0:00:33]} Bb7 {[%emt 0:00:24]} 39. Bc4 {[%emt 0:01:40]} Kd7 {[%emt 0:00:11]} 40. Bd3 {[%emt 0:00:26]} Kc7 {[%emt 0:01:35]} 41. Bb5 {[%emt 0:31:11]} Bc6 {[%emt 0:31:33]} 42. Ba6 {[%emt 0:01:47]} Bb7 {[%emt 0:00:40]} 43. Bb5 {[%emt 0:00:14]} a5+ {[%emt 0:02:57]} 44. Kc4 {[%emt 0:02:20]} Bc6 {[%emt 0:00:05]} 45. Kb3 {[%emt 0:01:40]} Bxb5 {[%emt 0:00:22]} 46. axb5 {[%emt 0:00:24]} Kd7 {[%emt 0:00:04]} 47. g4 {[%emt 0:02:34]} h6 {[%emt 0:00:20]} 48. g5 {[%emt 0:00:53]} hxg5 {[%emt 0:00:09]} 49. fxg5 {[%emt 0:00:07]} Ke7 {[%emt 0:00:03]} 50. h4 {[%emt 0:00:34]} Kf8 {[%emt 0:03:09]} 51. Ka4 {[%emt 0:00:30]} Kg7 {[%emt 0:07:50]} 52. Kb3 {[%emt 0:00:13] normal} 1/2-1/2

[Event "DVM U12w 2023"]
[Site "Magdeburg"]
[Date "2023.12.30"]
[Round "7"]
[White "Kuehne, Malin"]
[Black "Xu, Dorothea Sicheng"]
[Result "1-0"]
[WhiteElo "1264"]
[BlackElo "1118"]
[PlyCount "125"]
[EventDate "2022.12.27"]
[EventType "team-tourn"]
[EventRounds "7"]
[EventCountry "GER"]
[TimeControl "40/5400+30:1800+30"]
[WhiteClock "0:25:20"]
[BlackClock "0:56:24"]

1. d4 {[%emt 0:00:02]} d5 {[%emt 0:00:12]} 2. c4 {[%emt 0:00:05]} e6 {[%emt 0:00:07]} 3. Nc3 {[%emt 0:00:05]} Nf6 {[%emt 0:00:10]} 4. cxd5 {[%emt 0:00:19]} Nxd5 {[%emt 0:00:13]} 5. Nxd5 {[%emt 0:00:46]} exd5 {[%emt 0:03:23]} 6. e3 {[%emt 0:01:22]} Be6 {[%emt 0:00:35]} 7. Bd3 {[%emt 0:00:43]} Bb4+ {[%emt 0:00:39]} 8. Bd2 {[%emt 0:00:20]} Bxd2+ {[%emt 0:00:12]} 9. Qxd2 {[%emt 0:00:15]} O-O {[%emt 0:00:13]} 10. Ne2 {[%emt 0:01:43]} Nd7 {[%emt 0:00:21]} 11. O-O {[%emt 0:01:45]} c5 {[%emt 0:01:19]} 12. Qc2 {[%emt 0:05:14]} b6 {[%emt 0:02:48]} 13. Bxh7+ {[%emt 0:03:23]} Kh8 {[%emt 0:00:28]} 14. Bf5 {[%emt 0:01:26]} Bxf5 {[%emt 0:00:40]} 15. Qxf5 {[%emt 0:00:09]} Nf6 {[%emt 0:01:10]} 16. dxc5 {[%emt 0:06:45]} bxc5 {[%emt 0:00:24]} 17. Rfd1 {[%emt 0:02:30]} Rb8 {[%emt 0:02:27]} 18. b3 {[%emt 0:01:43]} Kg8 {[%emt 0:02:23]} 19. Nf4 {[%emt 0:02:04]} Qd6 {[%emt 0:07:06]} 20. Nxd5 {[%emt 0:02:32]} Nxd5 {[%emt 0:00:42]} 21. Qxd5 {[%emt 0:04:24]} Qxd5 {[%emt 0:00:26]} 22. Rxd5 {[%emt 0:00:09]} Rb5 {[%emt 0:01:10]} 23. Kf1 {[%emt 0:01:43]} f6 {[%emt 0:00:39]} 24. Rc1 {[%emt 0:01:19]} Rc8 {[%emt 0:00:23]} 25. g3 {[%emt 0:03:46]} Kf7 {[%emt 0:01:29]} 26. b4 {[%emt 0:07:38]} Rxb4 {[%emt 0:02:41]} 27. Rdxc5 {[%emt 0:01:04]} Rxc5 {[%emt 0:00:26]} 28. Rxc5 {[%emt 0:00:06]} Ra4 {[%emt 0:01:00]} 29. Rc2 {[%emt 0:01:15]} Ke6 {[%emt 0:00:42]} 30. Kg2 {[%emt 0:02:25]} g5 {[%emt 0:01:24]} 31. f3 {[%emt 0:04:11]} Ra3 {[%emt 0:01:41]} 32. Re2 {[%emt 0:01:09]} Kd5 {[%emt 0:02:47]} 33. h4 {[%emt 0:05:35]} Ra6 {[%emt 0:01:27]} 34. hxg5 {[%emt 0:03:42]} fxg5 {[%emt 0:01:44]} 35. f4 {[%emt 0:01:32]} gxf4 {[%emt 0:02:57]} 36. exf4 {[%emt 0:00:32]} Rf6 {[%emt 0:01:36]} 37. Kf3 {[%emt 0:02:58]} Kd4 {[%emt 0:02:04]} 38. g4 {[%emt 0:03:00]} Kd3 {[%emt 0:01:38]} 39. Re5 {[%emt 0:02:42]} Kd4 {[%emt 0:01:13]} 40. g5 {[%emt 0:01:17]} Rg6 {[%emt 0:00:51]} 41. Kg4 {[%emt 0:31:17]} Rg7 {[%emt 0:30:34]} 42. Re6 {[%emt 0:01:23]} Kd5 {[%emt 0:00:32]} 43. f5 {[%emt 0:00:21]} a5 {[%emt 0:00:21]} 44. Ra6 {[%emt 0:01:04]} Ke5 {[%emt 0:00:46]} 45. Rxa5+ {[%emt 0:00:11]} Kd6 {[%emt 0:01:16]} 46. Ra6+ {[%emt 0:02:57]} Ke5 {[%emt 0:00:36]} 47. Re6+ {[%emt 0:00:00]} Kd5 {[%emt 0:00:18]} 48. Re2 {[%emt 0:00:11]} Kd6 {[%emt 0:00:53]} 49. f6 {[%emt 0:00:23]} Rf7 {[%emt 0:00:29]} 50. Re7 {[%emt 0:01:32]} Rf8 {[%emt 0:01:02]} 51. Kf5 {[%emt 0:00:27]} Kd5 {[%emt 0:00:19]} 52. g6 {[%emt 0:00:48]} Kd6 {[%emt 0:00:55]} 53. Re2 {[%emt 0:00:13]} Kd5 {[%emt 0:00:22]} 54. g7 {[%emt 0:00:25]} Rg8 {[%emt 0:00:19]} 55. Kg6 {[%emt 0:00:14]} Kd4 {[%emt 0:00:48]} 56. f7 {[%emt 0:00:08]} Rxg7+ {[%emt 0:00:35]} 57. Kxg7 {[%emt 0:00:06]} Kd3 {[%emt 0:00:13]} 58. Re7 {[%emt 0:00:07]} Kd4 {[%emt 0:00:10]} 59. f8=Q {[%emt 0:00:09]} Kd5 {[%emt 0:00:09]} 60. Qd8+ {[%emt 0:00:07]} Kc6 {[%emt 0:00:10]} 61. Rc7+ {[%emt 0:00:15]} Kb6 {[%emt 0:00:20]} 62. Qb8+ {[%emt 0:00:04]} Ka6 {[%emt 0:00:09]} 63. Ra7# {[%emt 0:00:40] normal} 1-0

[Event "DVM U12w 2023"]
[Site "Magdeburg"]
[Date "2023.12.30"]
[Round "7"]
[White "Roessling, Laura Marie"]
[Black "Wieckowicz, Bui Havy"]
[Result "1-0"]
[WhiteElo "1232"]
[BlackElo "1175"]
[PlyCount "45"]
[EventDate "2022.12.27"]
[EventType "team-tourn"]
[EventRounds "7"]
[EventCountry "GER"]
[TimeControl "40/5400+30:1800+30"]
[WhiteClock "0:58:10"]
[BlackClock "1:11:02"]

1. e4 {[%emt 0:00:03]} c5 {[%emt 0:00:08]} 2. Nf3 {[%emt 0:00:11]} Nc6 {[%emt 0:00:11]} 3. d4 {[%emt 0:00:24]} cxd4 {[%emt 0:00:13]} 4. Nxd4 {[%emt 0:00:05]} Nf6 {[%emt 0:00:21]} 5. Nc3 {[%emt 0:00:14]} d6 {[%emt 0:00:11]} 6. f3 {[%emt 0:01:15]} e6 {[%emt 0:00:13]} 7. Be3 {[%emt 0:01:34]} Be7 {[%emt 0:00:10]} 8. Qd2 {[%emt 0:00:09]} a6 {[%emt 0:00:13]} 9. O-O-O {[%emt 0:00:25]} Qc7 {[%emt 0:00:10]} 10. g4 {[%emt 0:00:34]} b5 {[%emt 0:00:47]} 11. h4 {[%emt 0:03:28]} Na5 {[%emt 0:00:40]} 12. h5 {[%emt 0:09:34]} Nc4 {[%emt 0:00:15]} 13. Bxc4 {[%emt 0:00:12]} bxc4 {[%emt 0:00:14]} 14. g5 {[%emt 0:00:47]} Nd7 {[%emt 0:00:13]} 15. g6 {[%emt 0:07:43]} Nf6 {[%emt 0:00:10]} 16. gxf7+ {[%emt 0:01:17]} Kxf7 {[%emt 0:00:16]} 17. Qg2 {[%emt 0:01:09]} Rg8 {[%emt 0:02:24]} 18. f4 {[%emt 0:01:32]} Bb7 {[%emt 0:02:02]} 19. f5 {[%emt 0:07:28]} e5 {[%emt 0:08:18]} 20. Ne6 {[%emt 0:02:00]} Qd7 {[%emt 0:09:41]} 21. Nd5 {[%emt 0:03:13]} Nxd5 {[%emt 0:01:41]} 22. exd5 {[%emt 0:00:31]} h6 {[%emt 0:01:57]} 23. Qg6# {[%emt 0:00:02] normal} 1-0

[Event "DVM U12w 2023"]
[Site "Magdeburg"]
[Date "2023.12.30"]
[Round "7"]
[White "Korwitz, Pauline"]
[Black "Wilke, Ronja"]
[Result "1-0"]
[WhiteElo "1219"]
[BlackElo "1224"]
[PlyCount "153"]
[EventDate "2022.12.27"]
[EventType "team-tourn"]
[EventRounds "7"]
[EventCountry "GER"]
[TimeControl "40/5400+30:1800+30"]
[WhiteClock "1:02:57"]
[BlackClock "0:51:09"]

1. e4 {[%emt 0:00:03]} c6 {[%emt 0:00:23]} 2. Nf3 {[%emt 0:00:46]} d5 {[%emt 0:00:14]} 3. Nc3 {[%emt 0:00:16]} dxe4 {[%emt 0:00:25]} 4. Nxe4 {[%emt 0:00:16]} Bg4 {[%emt 0:00:32]} 5. Be2 {[%emt 0:00:25]} Nd7 {[%emt 0:01:24]} 6. d4 {[%emt 0:00:41]} e6 {[%emt 0:03:01]} 7. O-O {[%emt 0:01:26]} Be7 {[%emt 0:01:29]} 8. Nfg5 {[%emt 0:05:48]} Bxe2 {[%emt 0:02:25]} 9. Qxe2 {[%emt 0:00:13]} Ngf6 {[%emt 0:04:07]} 10. Nxf6+ {[%emt 0:03:26]} Nxf6 {[%emt 0:00:42]} 11. Nf3 {[%emt 0:01:37]} h6 {[%emt 0:01:59]} 12. Bf4 {[%emt 0:01:33]} O-O {[%emt 0:01:27]} 13. Rfd1 {[%emt 0:01:34]} Bd6 {[%emt 0:00:45]} 14. Ne5 {[%emt 0:01:34]} Nd5 {[%emt 0:02:22]} 15. Bg3 {[%emt 0:01:28]} Qe7 {[%emt 0:03:34]} 16. c4 {[%emt 0:03:58]} Nf6 {[%emt 0:01:15]} 17. Qf3 {[%emt 0:03:03]} Nd7 {[%emt 0:01:29]} 18. Nxd7 {[%emt 0:01:18]} Qxd7 {[%emt 0:00:10]} 19. Bxd6 {[%emt 0:00:29]} Qxd6 {[%emt 0:00:14]} 20. d5 {[%emt 0:02:36]} cxd5 {[%emt 0:01:13]} 21. cxd5 {[%emt 0:00:18]} exd5 {[%emt 0:00:16]} 22. Qxd5 {[%emt 0:01:07]} Qxd5 {[%emt 0:00:29]} 23. Rxd5 {[%emt 0:00:09]} a6 {[%emt 0:00:17]} 24. Rad1 {[%emt 0:01:54]} Rfe8 {[%emt 0:00:27]} 25. R5d2 {[%emt 0:01:24]} Kh7 {[%emt 0:00:32]} 26. Kf1 {[%emt 0:01:04]} f6 {[%emt 0:00:07]} 27. Re1 {[%emt 0:00:39]} Rxe1+ {[%emt 0:01:02]} 28. Kxe1 {[%emt 0:00:05]} Re8+ {[%emt 0:00:13]} 29. Re2 {[%emt 0:00:09]} Rc8 {[%emt 0:00:32]} 30. Kd1 {[%emt 0:00:17]} Rc7 {[%emt 0:00:31]} 31. Rc2 {[%emt 0:01:03]} Rf7 {[%emt 0:00:06]} 32. Ke2 {[%emt 0:00:23]} Kg6 {[%emt 0:00:09]} 33. Kf3 {[%emt 0:00:15]} f5 {[%emt 0:00:12]} 34. Kf4 {[%emt 0:00:58]} Kf6 {[%emt 0:00:21]} 35. Rc5 {[%emt 0:02:56]} g5+ {[%emt 0:01:11]} 36. Kf3 {[%emt 0:00:30]} Rd7 {[%emt 0:00:23]} 37. Ke2 {[%emt 0:01:05]} Ke6 {[%emt 0:00:24]} 38. f3 {[%emt 0:01:39]} Rd5 {[%emt 0:00:32]} 39. Rxd5 {[%emt 0:00:42]} Kxd5 {[%emt 0:00:11]} 40. Kd3 {[%emt 0:00:13]} h5 {[%emt 0:00:36]} 41. h3 {[%emt 0:30:45]} b5 {[%emt 0:33:56]} 42. b4 {[%emt 0:00:54]} f4 {[%emt 0:00:20]} 43. a3 {[%emt 0:01:25]} Ke5 {[%emt 0:00:12]} 44. Kc3 {[%emt 0:00:44]} Kd5 {[%emt 0:00:47]} 45. Kd3 {[%emt 0:00:23]} Ke5 {[%emt 0:10:23]} 46. Kc3 {[%emt 0:00:13]} Kf5 {[%emt 0:00:06]} 47. Kd4 {[%emt 0:00:32]} g4 {[%emt 0:00:37]} 48. h4 {[%emt 0:01:01]} g3 {[%emt 0:02:47]} 49. Kd5 {[%emt 0:00:34]} Kf6 {[%emt 0:01:38]} 50. Ke4 {[%emt 0:00:36]} Ke6 {[%emt 0:01:20]} 51. Kxf4 {[%emt 0:00:31]} Kd5 {[%emt 0:00:23]} 52. Kg5 {[%emt 0:00:13]} Kc4 {[%emt 0:00:21]} 53. f4 {[%emt 0:00:06]} Kd4 {[%emt 0:01:29]} 54. f5 {[%emt 0:00:36]} Ke3 {[%emt 0:00:22]} 55. f6 {[%emt 0:00:12]} Kf2 {[%emt 0:00:21]} 56. f7 {[%emt 0:00:16]} Kxg2 {[%emt 0:00:34]} 57. f8=Q {[%emt 0:00:11]} Kh1 {[%emt 0:00:43]} 58. Kxh5 {[%emt 0:00:54]} g2 {[%emt 0:02:06]} 59. Qg8 {[%emt 0:00:43]} g1=Q {[%emt 0:01:36]} 60. Qxg1+ {[%emt 0:00:18]} Kxg1 {[%emt 0:00:28]} 61. Kg5 {[%emt 0:00:10]} Kf2 {[%emt 0:00:37]} 62. h5 {[%emt 0:00:22]} Ke3 {[%emt 0:00:49]} 63. h6 {[%emt 0:00:04]} Kd3 {[%emt 0:00:07]} 64. h7 {[%emt 0:00:05]} Kc4 {[%emt 0:00:12]} 65. h8=Q {[%emt 0:00:21]} Kb3 {[%emt 0:00:18]} 66. Qa1 {[%emt 0:00:37]} Ka4 {[%emt 0:01:14]} 67. Kf5 {[%emt 0:00:09]} Kb3 {[%emt 0:01:19]} 68. Ke5 {[%emt 0:00:07]} Kc4 {[%emt 0:00:45]} 69. Qa2+ {[%emt 0:00:43]} Kc3 {[%emt 0:00:21]} 70. Kd5 {[%emt 0:01:18]} Kd3 {[%emt 0:01:17]} 71. Qb3+ {[%emt 0:00:12]} Kd2 {[%emt 0:00:27]} 72. Ke4 {[%emt 0:00:22]} a5 {[%emt 0:00:49]} 73. bxa5 {[%emt 0:00:14]} b4 {[%emt 0:00:12]} 74. axb4 {[%emt 0:00:18]} Kc1 {[%emt 0:00:13]} 75. Qa2 {[%emt 0:00:12]} Kd1 {[%emt 0:00:19]} 76. Kd3 {[%emt 0:00:12]} Ke1 {[%emt 0:00:12]} 77. Qe2# {[%emt 0:00:10] normal} 1-0